fUST/lending_fUST_20260209
["ID","MTS","AMOUNT","RATE_DAILY","PERIOD"]
[404839092,1770612640945,-291.89582013,0.00039888,3]
[404839094,1770612640955,-2007.72143009,0.00039897,120]
[404839096,1770612640963,-563.77579347,0.00039898,32]
[404839377,1770612645605,-869.59969892,0.00039898,32]
[404839378,1770612645614,-151.0,0.000399,15]
[404839379,1770612645625,-151.0,0.000399,12]
[404839380,1770612645634,-4231.48622828,0.000399,2]
[404839392,1770612646618,-3900.88867759,0.000399,2]
[404839393,1770612646628,-151.0,0.000399,120]
[404839394,1770612646640,-2000.0,0.00039906,21]
[404839395,1770612646650,-343.48,0.00039932,120]
[404839396,1770612646661,-716.17,0.00039932,120]
[404839397,1770612646670,-151.0,0.00039976,7]
[404839398,1770612646681,-250.423611,0.00039976,120]
[404839399,1770612646690,-250.423611,0.00039976,120]
[404839400,1770612646700,-250.423611,0.00039976,120]
[404839401,1770612646709,-250.423611,0.00039976,120]
[404839402,1770612646718,-272.008822,0.00039976,120]
[404839403,1770612646728,-272.008822,0.00039976,120]
[404839404,1770612646737,-272.008822,0.00039976,120]
[404839405,1770612646746,-151.0,0.00039976,120]
[404839406,1770612646755,-272.008822,0.00039976,120]
[404839407,1770612646765,-151.0,0.00039976,120]
[404839408,1770612646773,-151.0,0.00039976,120]
[404839409,1770612646782,-151.0,0.00039976,120]
[404839410,1770612646791,-151.0,0.00039976,120]
[404839411,1770612646801,-250.0,0.00039976,2]
[404839412,1770612646811,-250.0,0.00039976,2]
[404839413,1770612646820,-181.08010149,0.00039976,2]
[404839414,1770612646829,-250.0,0.00039976,2]
[404839415,1770612646839,-187.78006525,0.00039976,2]
[404839416,1770612646847,-250.0,0.00039976,2]
[404839417,1770612646856,-194.72792766,0.00039976,2]
[404839418,1770612646866,-201.93286099,0.00039976,2]
[404839419,1770612646875,-209.40437684,0.00039976,2]
[404839420,1770612646884,-217.15233878,0.00039976,2]
[404839421,1770612646893,-225.18697532,0.00039976,2]
[404839422,1770612646902,-233.51889341,0.00039976,2]
[404839423,1770612646912,-242.15909246,0.00039976,2]
[404839424,1770612646922,-251.11897888,0.00039976,2]
[404839425,1770612646931,-260.4103811,0.00039976,2]
[404839426,1770612646940,-270.0455652,0.00039976,2]
[404839427,1770612646950,-280.03725112,0.00039976,2]
[404839428,1770612646959,-403.76194286,0.00039976,2]
[404839429,1770612646969,-224.2853764,0.00039976,2]
[404839430,1770612646979,-1000.0,0.00039976,2]
[404839431,1770612646988,-291.89582013,0.00039981,3]
[404839432,1770612646998,-291.89582013,0.00039981,3]
[404839433,1770612647007,-546.91253329,0.00039982,120]
[404839434,1770612647017,-151.0,0.00039982,120]
[404839435,1770612647026,-659.402118,0.00039982,120]
[404839436,1770612647035,-659.402118,0.00039982,120]
[404839437,1770612647045,-659.402118,0.00039982,120]
[404839438,1770612647054,-659.402118,0.00039982,120]
[404839439,1770612647064,-151.0,0.0003999,120]
[404839440,1770612647074,-151.0,0.0003999,120]
[404839441,1770612647085,-151.0,0.0003999,120]
[404839442,1770612647095,-151.0,0.0003999,120]
[404839443,1770612647105,-151.0,0.0003999,120]
[404839444,1770612647121,-151.0,0.0003999,120]
[404839445,1770612647131,-151.0,0.0003999,120]
[404839446,1770612647140,-151.0,0.0003999,60]
[404839447,1770612647151,-151.0,0.0003999,120]
[404839448,1770612647161,-188.672844,0.0003999,60]
[404839449,1770612647171,-151.0,0.0003999,120]
[404839450,1770612647182,-151.0,0.0003999,120]
[404839451,1770612647192,-151.0,0.0003999,120]
[404839452,1770612647203,-151.0,0.0003999,120]
[404839453,1770612647212,-151.0,0.0003999,120]
[404839454,1770612647221,-213.868306,0.0003999,120]
[404839455,1770612647231,-4378.43730195,0.0003999,3]
[404839456,1770612647240,-151.0,0.00039991,120]
[404839457,1770612647249,-151.0,0.00039991,120]
[404839458,1770612647259,-151.0,0.00039991,120]
[404839459,1770612647268,-151.0,0.00039991,120]
[404839460,1770612647277,-151.0,0.00039991,120]
[404839461,1770612647286,-151.0,0.00039991,120]
[404839462,1770612647294,-151.0,0.00039991,120]
[404839463,1770612647303,-151.0,0.00039991,120]
[404839464,1770612647312,-520.20062,0.00039991,120]
[404839465,1770612647321,-520.20062,0.00039991,120]
[404839466,1770612647330,-520.20062,0.00039991,120]
[404839467,1770612647339,-520.20062,0.00039991,120]
[404839468,1770612647349,-520.20062,0.00039991,120]
[404839469,1770612647369,-520.20062,0.00039991,120]
[404839470,1770612647379,-215.69086,0.00039991,120]
[404839471,1770612647388,-215.69086,0.00039991,120]
[404839472,1770612647398,-520.20062,0.00039991,120]
[404839473,1770612647408,-520.20062,0.00039991,120]
[404839474,1770612647417,-215.69086,0.00039991,120]
[404839475,1770612647430,-215.69086,0.00039991,120]
[404839476,1770612647439,-156.0209,0.00039991,120]
[404839477,1770612647448,-215.69086,0.00039991,120]
[404839478,1770612647458,-215.69086,0.00039991,120]
[404839479,1770612647467,-215.69086,0.00039991,120]
[404839480,1770612647477,-215.69086,0.00039991,120]
[404839481,1770612647486,-254.371969,0.00039991,120]
[404839482,1770612647496,-254.371969,0.00039991,120]
[404839483,1770612647505,-254.371969,0.00039991,120]
[404839484,1770612647515,-254.371969,0.00039991,120]
[404839485,1770612647525,-254.371969,0.00039991,120]
[404839486,1770612647535,-254.371969,0.00039991,120]
[404839487,1770612647546,-254.371969,0.00039991,120]
[404839488,1770612647557,-254.371969,0.00039991,120]
[404839489,1770612647566,-467.842391,0.00039991,120]
[404839490,1770612647576,-467.842391,0.00039991,120]
[404839491,1770612647586,-467.842391,0.00039991,120]
[404839492,1770612647596,-467.842391,0.00039991,120]
[404839493,1770612647605,-467.842391,0.00039991,120]
[404839494,1770612647614,-467.842391,0.00039991,120]
[404839495,1770612647624,-467.842391,0.00039991,120]
[404839496,1770612647634,-467.842391,0.00039991,120]
[404839497,1770612647643,-151.0,0.00039991,15]
[404839498,1770612647653,-151.0,0.00039991,15]
[404839499,1770612647663,-151.0,0.00039991,15]
[404839500,1770612647672,-151.0,0.00039991,15]
[404839501,1770612647681,-153.807352,0.00039991,120]
[404839502,1770612647691,-153.807352,0.00039991,120]
[404839503,1770612647701,-153.807352,0.00039991,120]
[404839504,1770612647711,-153.807352,0.00039991,120]
[404839505,1770612647720,-153.807352,0.00039991,120]
[404839506,1770612647730,-153.807352,0.00039991,120]
[404839507,1770612647740,-151.0,0.00039991,120]
[404839508,1770612647750,-153.807352,0.00039991,120]
[404839509,1770612647759,-151.0,0.00039991,120]
[404839510,1770612647768,-153.807352,0.00039991,120]
[404839511,1770612647778,-151.0,0.00039991,120]
[404839512,1770612647787,-151.0,0.00039991,120]
[404839513,1770612647796,-151.0,0.00039991,120]
[404839514,1770612647806,-151.0,0.00039991,120]
[404839515,1770612647815,-151.0,0.00039991,120]
[404839516,1770612647824,-234.950347,0.00039991,120]
[404839517,1770612647834,-151.0,0.00039991,120]
[404839518,1770612647845,-151.0,0.00039991,60]
[404839519,1770612647855,-151.0,0.00039991,120]
[404839520,1770612647865,-151.0,0.00039991,120]
[404839521,1770612647875,-151.0,0.00039991,120]
[404839522,1770612647886,-151.0,0.00039991,120]
[404839523,1770612647897,-157.178205,0.00039991,120]
[404839524,1770612647908,-151.0,0.00039991,120]
[404839525,1770612647918,-151.0,0.00039991,120]
[404839526,1770612647928,-151.0,0.00039991,120]
[404839527,1770612647938,-151.0,0.00039991,120]
[404839528,1770612648076,-151.0,0.00039991,7]
[404839529,1770612648085,-188.355452,0.00039991,7]
[404839530,1770612648095,-250.423611,0.00039991,120]
[404839531,1770612648105,-250.423611,0.00039991,120]
[404839532,1770612648118,-250.423611,0.00039991,120]
[404839533,1770612648128,-250.423611,0.00039991,120]
[404839534,1770612648137,-250.423611,0.00039991,120]
[404839535,1770612648146,-250.423611,0.00039991,120]
[404839536,1770612648157,-250.423611,0.00039991,120]
[404839537,1770612648166,-250.423611,0.00039991,120]
[404839538,1770612648176,-272.008822,0.00039991,120]
[404839539,1770612648188,-272.008822,0.00039991,120]
[404839540,1770612648198,-272.008822,0.00039991,120]
[404839541,1770612648208,-272.008822,0.00039991,120]
[404839542,1770612648217,-272.008822,0.00039991,120]
[404839543,1770612648226,-272.008822,0.00039991,120]
[404839544,1770612648236,-182.91279,0.00039991,120]
[404839545,1770612648246,-272.008822,0.00039991,120]
[404839546,1770612648255,-272.008822,0.00039991,120]
[404839547,1770612648264,-151.0,0.00039991,120]
[404839548,1770612648273,-293.572839,0.00039991,120]
[404839549,1770612648282,-151.0,0.00039991,120]
[404839550,1770612648291,-151.0,0.00039991,120]
[404839551,1770612648301,-151.0,0.00039991,120]
[404839552,1770612648310,-151.0,0.00039991,120]
[404839553,1770612648319,-1000.0,0.00039991,30]
[404839554,1770612648328,-843.100134,0.00039991,30]
[404839555,1770612648338,-151.0,0.00039991,120]
[404839556,1770612648348,-151.0,0.00039991,120]
[404839557,1770612648357,-151.0,0.00039991,120]
[404839558,1770612648367,-180.281376,0.00039991,120]
[404839559,1770612648377,-271.485706,0.00039991,120]
[404839560,1770612648386,-659.402118,0.00039991,120]
[404839561,1770612648396,-659.402118,0.00039991,120]
[404839562,1770612648405,-659.402118,0.00039991,120]
[404839563,1770612648414,-659.402118,0.00039991,120]
[404839564,1770612648424,-659.402118,0.00039991,120]
[404839565,1770612648433,-659.402118,0.00039991,120]
[404839566,1770612648443,-659.402118,0.00039991,120]
[404839567,1770612648452,-659.402118,0.00039991,120]
[404839568,1770612648461,-38000.0,0.00039991,15]
[404839569,1770612648470,-203.44,0.00039999,14]
[404839570,1770612648480,-197.32521264,0.00039999,31]
[404839571,1770612648489,-509.56613313,0.00039999,7]
[404839572,1770612648501,-367.88312887,0.00039999,31]
[404839573,1770612648510,-500.0,0.00039999,31]
[404839574,1770612648519,-500.0,0.00039999,31]
[404839575,1770612648529,-228.45817631,0.00039999,31]
[404839576,1770612648539,-484.03526932,0.00039999,7]
[404839577,1770612648548,-500.0,0.00039999,31]
[404839578,1770612648557,-648.57949636,0.00039999,31]
[404839579,1770612648567,-165.0,0.0004,30]
[404839580,1770612648576,-1000.0,0.0004,30]
[404839581,1770612648586,-500.0,0.0004,2]
[404839582,1770612648595,-354.83882869,0.0004,30]
[404839583,1770612648604,-259.17735541,0.0004,10]
[404839584,1770612648613,-181372.95436506,0.0004,2]
[404839585,1770612892788,186.52,0.00030137,120]
[404839599,1770613831603,-150.0,0.00025203,2]
[404839602,1770613831613,-675.32896365,0.00025205,2]
[404839604,1770613831622,-500.98336948,0.00031459,7]
[404839605,1770613831631,-780.45035752,0.00033599,4]
[404839651,1770613837790,-1092.28362495,0.00025105,2]
[404839850,1770613839983,-5633.69360642,0.00025105,2]
[404839852,1770613839992,-333.81359073,0.00033599,4]
[404839854,1770613840001,-219.952317,0.00034522,2]
[404839856,1770613840011,-7454.16730799,0.00034706,2]
[404839858,1770613840022,-1932.74865695,0.00034706,2]
[404840394,1770613845853,-613.08403506,0.00034706,2]
[404840396,1770613845862,-5.23864998,0.00035,120]
[404843938,1770614908188,715.54771468,0.00015,2]
[404843963,1770615031718,-150.0,0.00025376,2]
[404843964,1770615031728,-246.94363371,0.00025376,2]
[404843965,1770615031740,-555.07659149,0.00025376,2]
[404843966,1770615031752,-177.0,0.00027376,2]
[404843967,1770615031762,-204.0,0.00029376,2]
[404843968,1770615031771,-745.39781349,0.000301,7]
[404843969,1770615031994,-254.60218651,0.000301,7]
[404843970,1770615032005,-352.02376278,0.00030154,120]
[404843971,1770615032016,-839.4534293,0.00031919,2]
[404843972,1770615032025,-1900.80247431,0.00033013,2]
[404843973,1770615032035,-400.0,0.00034749,2]
[404843974,1770615032045,-1432.00824005,0.00034751,2]
[404843975,1770615032057,-517.62917081,0.00034998,7]
[404843976,1770615032067,-500.0,0.00034998,7]
[404843977,1770615032077,-240.0,0.00034998,7]
[404843978,1770615032086,-500.0,0.00034998,7]
[404843979,1770615032096,-500.0,0.00034998,7]
[404843980,1770615032105,-500.0,0.00034998,7]
[404843981,1770615032114,-500.0,0.00034998,7]
[404843982,1770615032123,-741.97989042,0.00034998,7]
[404843983,1770615032132,-25370.60968333,0.00034999,2]
[404844008,1770615037856,-503.76311485,0.00034997,7]
[404844010,1770615037866,-407.35739524,0.00034997,7]
[404844012,1770615037875,-500.0,0.00034997,7]
[404844014,1770615037887,-500.0,0.00034997,7]
[404844016,1770615037896,-500.0,0.00034997,7]
[404844018,1770615037905,-500.0,0.00034997,7]
[404844020,1770615037914,-500.0,0.00034997,7]
[404844022,1770615037923,-500.0,0.00034997,7]
[404844024,1770615037933,-500.0,0.00034997,7]
[404844026,1770615037943,-500.0,0.00034997,7]
[404844028,1770615037953,-501.41631066,0.00034997,7]
[404844030,1770615037962,-334.6325058,0.00034997,7]
[404844032,1770615037971,-500.0,0.00034997,7]
[404844034,1770615037980,-500.0,0.00034997,7]
[404844036,1770615037989,-500.0,0.00034997,7]
[404844038,1770615037999,-500.0,0.00034997,7]
[404844040,1770615038008,-500.0,0.00034997,7]
[404844042,1770615038017,-380.1637573,0.00034997,7]
[404844044,1770615038028,-119.8362427,0.00034997,7]
[404844046,1770615038037,-500.0,0.00034997,7]
[404844048,1770615038046,-620.0,0.00034997,7]
[404844050,1770615038055,-500.0,0.00034997,7]
[404844052,1770615038064,-500.0,0.00034997,7]
[404844054,1770615038074,-500.0,0.00034997,7]
[404844056,1770615038083,-500.0,0.00034997,7]
[404844058,1770615038092,-500.0,0.00034997,7]
[404844059,1770615038101,-500.0,0.00034997,7]
[404844061,1770615038110,-500.0,0.00034997,7]
[404844064,1770615038120,-500.0,0.00034997,7]
[404844065,1770615038129,-500.0,0.00034997,7]
[404844067,1770615038138,-555.0,0.00034997,7]
[404844069,1770615038147,-458.12475316,0.00034997,7]
[404844072,1770615038159,-41.87524684,0.00034997,7]
[404844074,1770615038169,-500.0,0.00034997,7]
[404844076,1770615038178,-500.0,0.00034997,7]
[404844078,1770615038187,-500.0,0.00034997,7]
[404844080,1770615038197,-500.0,0.00034997,7]
[404844082,1770615038206,-500.0,0.00034997,7]
[404844084,1770615038215,-500.0,0.00034997,7]
[404844086,1770615038225,-500.0,0.00034997,7]
[404844088,1770615038234,-500.0,0.00034997,7]
[404844090,1770615038243,-500.0,0.00034997,7]
[404844092,1770615038252,-622.97659038,0.00034997,7]
[404844094,1770615038262,-500.0,0.00034997,7]
[404844096,1770615038271,-500.0,0.00034997,7]
[404844098,1770615038281,-500.0,0.00034997,7]
[404844100,1770615038290,-500.0,0.00034997,7]
[404844102,1770615038300,-500.0,0.00034997,7]
[404844104,1770615038310,-500.0,0.00034997,7]
[404844106,1770615038319,-500.0,0.00034997,7]
[404844108,1770615038328,-500.0,0.00034997,7]
[404844110,1770615038338,-500.0,0.00034997,7]
[404844112,1770615038347,-500.0,0.00034997,7]
[404844114,1770615038357,-500.0,0.00034997,7]
[404844116,1770615038367,-500.0,0.00034997,7]
[404844118,1770615038376,-500.0,0.00034997,7]
[404844120,1770615038386,-500.0,0.00034997,7]
[404844122,1770615038395,-24629.39031667,0.00034999,2]
[404844136,1770615038516,-3220.55783271,0.00035,120]
[404844138,1770615038525,-1041.66666667,0.00035546,2]
[404844140,1770615038535,-500.0,0.00036593,120]
[404844142,1770615038544,-2898.0192722,0.0003699,3]
[404844144,1770615038553,-128314.09054278,0.00037,2]
[404844147,1770615038565,-801.13,0.00037,2]
[404844300,1770615040025,-1479.11219015,0.00037,2]
[404844756,1770615044393,-360.0,0.00034997,7]
[404844758,1770615044403,-80909.27541645,0.00037,2]
[404844760,1770615044415,-2680.87889995,0.00037,2]
[404844811,1770615045924,-6555.00798741,0.00037,2]
[404844817,1770615307978,303.10001603,0.000189,2]
[404844818,1770615308014,151.55000803,0.00019089,2]
[404844831,1770615502589,1011.0,0.00022,4]
[404844932,1770616232556,-150.0,0.00025376,2]
[404844934,1770616232566,-447.21929559,0.00025376,2]
[404844936,1770616232577,-249.43282753,0.00025376,2]
[404844938,1770616232586,-160.47877207,0.00028822,31]
[404844940,1770616232596,-1602.8491565,0.00029316,2]
[404844942,1770616232605,-1000.0,0.0003,10]
[404844944,1770616232614,-1200.0,0.00031635,3]
[404844946,1770616232624,-300.0,0.00031636,3]
[404844948,1770616232633,-318.0,0.00031636,2]
[404844950,1770616232643,-300.0,0.00031636,3]
[404844952,1770616232652,-300.0,0.00031636,3]
[404844954,1770616232661,-50000.0,0.00031637,2]
[404844956,1770616232670,-500.0,0.00031637,2]
[404844958,1770616232679,-500.0,0.00031637,2]
[404844960,1770616232688,-500.0,0.00031637,2]
[404844962,1770616232697,-500.0,0.00031637,2]
[404844964,1770616232706,-500.0,0.00031637,2]
[404844965,1770616232715,-500.0,0.00031637,2]
[404844967,1770616232724,-500.0,0.00031637,2]
[404844969,1770616232733,-500.0,0.00031637,2]
[404844971,1770616232742,-500.0,0.00031637,2]
[404844973,1770616232751,-500.0,0.00031637,2]
[404844975,1770616232760,-500.0,0.00031637,2]
[404844977,1770616232769,-500.0,0.00031637,2]
[404844979,1770616232778,-500.0,0.00031637,2]
[404844981,1770616232787,-500.0,0.00031637,2]
[404844983,1770616232796,-500.0,0.00031637,2]
[404844985,1770616232805,-250.0,0.00031637,2]
[404844987,1770616232814,-500.0,0.00031637,2]
[404844989,1770616232823,-500.0,0.00031637,2]
[404844991,1770616232832,-500.0,0.00031637,2]
[404844993,1770616232841,-500.0,0.00031637,2]
[404844995,1770616232856,-500.0,0.00031637,2]
[404844997,1770616232865,-500.0,0.00031637,2]
[404844999,1770616232874,-500.0,0.00031637,2]
[404845001,1770616232884,-500.0,0.00031637,2]
[404845003,1770616232893,-500.0,0.00031637,2]
[404845005,1770616232902,-500.0,0.00031637,2]
[404845007,1770616232911,-500.0,0.00031637,2]
[404845009,1770616232920,-500.0,0.00031637,2]
[404845011,1770616232929,-500.0,0.00031637,2]
[404845013,1770616232938,-500.0,0.00031637,2]
[404845015,1770616232947,-500.0,0.00031637,2]
[404845017,1770616232957,-500.0,0.00031637,2]
[404845019,1770616232967,-500.0,0.00031637,2]
[404845021,1770616232976,-500.0,0.00031637,2]
[404845023,1770616232986,-500.0,0.00031637,2]
[404845025,1770616232995,-500.0,0.00031637,2]
[404845027,1770616233004,-500.0,0.00031637,2]
[404845029,1770616233013,-500.0,0.00031637,2]
[404845030,1770616233023,-500.0,0.00031637,2]
[404845032,1770616233033,-500.0,0.00031637,2]
[404845034,1770616233045,-500.0,0.00031637,2]
[404845036,1770616233055,-500.0,0.00031637,2]
[404845038,1770616233064,-500.0,0.00031637,2]
[404845040,1770616233073,-500.0,0.00031637,2]
[404845042,1770616233083,-500.0,0.00031637,2]
[404845044,1770616233092,-500.0,0.00031637,2]
[404845047,1770616233103,-500.0,0.00031637,2]
[404845048,1770616233112,-500.0,0.00031637,2]
[404845050,1770616233121,-500.0,0.00031637,2]
[404845052,1770616233131,-500.0,0.00031637,2]
[404845054,1770616233142,-500.0,0.00031637,2]
[404845056,1770616233151,-500.0,0.00031637,2]
[404845059,1770616233161,-500.0,0.00031637,2]
[404845061,1770616233170,-500.0,0.00031637,2]
[404845062,1770616233179,-500.0,0.00031637,2]
[404845065,1770616233189,-500.0,0.00031637,2]
[404845067,1770616233199,-500.0,0.00031637,2]
[404845069,1770616233208,-509.38962838,0.00031637,2]
[404845071,1770616233217,-500.0,0.00031637,2]
[404845072,1770616233227,-500.0,0.00031637,2]
[404845074,1770616233236,-500.0,0.00031637,2]
[404845076,1770616233250,-500.0,0.00031637,2]
[404845078,1770616233259,-500.0,0.00031637,2]
[404845081,1770616233269,-500.0,0.00031637,2]
[404845083,1770616233278,-500.0,0.00031637,2]
[404845085,1770616233289,-500.0,0.00031637,2]
[404845086,1770616233298,-500.0,0.00031637,2]
[404845088,1770616233307,-500.0,0.00031637,2]
[404845089,1770616233318,-500.0,0.00031637,2]
[404845091,1770616233327,-500.0,0.00031637,2]
[404845093,1770616233337,-500.0,0.00031637,2]
[404845095,1770616233346,-500.0,0.00031637,2]
[404845097,1770616233355,-399.99999999,0.00031637,2]
[404845099,1770616233365,-500.0,0.00031637,2]
[404845101,1770616233374,-500.0,0.00031638,2]
[404845103,1770616233384,-552.68842759,0.0003164,120]
[404845105,1770616233393,-151.0,0.0003164,7]
[404845107,1770616233403,-157.912262,0.0003164,7]
[404845109,1770616233412,-16069.0382116,0.00031642,2]
[404845111,1770616233421,-694.884929,0.00032192,2]
[404845113,1770616233430,-694.884929,0.00033548,2]
[404845115,1770616233439,-173.25193745,0.00033599,4]
[404845117,1770616233448,-500.197,0.00034454,7]
[404845119,1770616233458,-694.884929,0.00034903,2]
[404845121,1770616233467,-611.32648021,0.00034997,120]
[404845123,1770616233476,-521.78111065,0.00034997,30]
[404845125,1770616233485,-500.0,0.00034997,120]
[404845127,1770616233495,-559.67510133,0.00034998,120]
[404845128,1770616233503,-7731.62,0.00035,14]
[404845130,1770616233513,-694.884929,0.00036258,2]
[404845132,1770616233522,-261.3182189,0.00036648,2]
[404845134,1770616233531,-160.0,0.00036882,2]
[404845137,1770616233542,-9135.95515307,0.00037,2]
[404845138,1770616233551,-694.884929,0.00037613,2]
[404845141,1770616233561,-741.97989042,0.00037867,2]
[404845142,1770616233570,-1773.13712206,0.00038346,3]
[404845145,1770616233580,-151.0,0.00038356,120]
[404845146,1770616233589,-151.0,0.00038356,120]
[404845149,1770616233600,-151.0,0.00038356,120]
[404845150,1770616233610,-151.0,0.00038356,120]
[404845152,1770616233619,-312.120372,0.00038356,120]
[404845154,1770616233628,-312.120372,0.00038356,120]
[404845156,1770616233638,-312.120372,0.00038356,120]
[404845159,1770616233648,-312.120372,0.00038356,120]
[404845160,1770616233657,-312.120372,0.00038356,120]
[404845162,1770616233667,-312.120372,0.00038356,120]
[404845164,1770616233676,-151.0,0.00038356,120]
[404845166,1770616233685,-151.0,0.00038356,120]
[404845168,1770616233695,-312.120372,0.00038356,120]
[404845170,1770616233704,-312.120372,0.00038356,120]
[404845172,1770616233714,-151.0,0.00038356,120]
[404845174,1770616233723,-151.0,0.00038356,120]
[404845176,1770616233732,-151.0,0.00038356,120]
[404845178,1770616233742,-151.0,0.00038356,120]
[404845180,1770616233751,-151.0,0.00038356,120]
[404845182,1770616233761,-172.290324,0.00038356,120]
[404845184,1770616233770,-152.623181,0.00038356,120]
[404845186,1770616233779,-152.623181,0.00038356,120]
[404845188,1770616233788,-152.623181,0.00038356,120]
[404845190,1770616233797,-152.623181,0.00038356,120]
[404845192,1770616233807,-280.705435,0.00038356,120]
[404845193,1770616233816,-280.705435,0.00038356,120]
[404845196,1770616233825,-152.623181,0.00038356,120]
[404845198,1770616233835,-152.623181,0.00038356,120]
[404845199,1770616233844,-280.705435,0.00038356,120]
[404845201,1770616233854,-280.705435,0.00038356,120]
[404845203,1770616233863,-152.623181,0.00038356,120]
[404845205,1770616233872,-152.623181,0.00038356,120]
[404845207,1770616233881,-280.705435,0.00038356,120]
[404845209,1770616233890,-280.705435,0.00038356,120]
[404845211,1770616233899,-280.705435,0.00038356,120]
[404845213,1770616233908,-280.705435,0.00038356,120]
[404845215,1770616233917,-151.0,0.00038356,15]
[404845217,1770616233927,-151.0,0.00038356,15]
[404845219,1770616233936,-151.0,0.00038356,120]
[404845221,1770616233945,-151.0,0.00038356,120]
[404845223,1770616233954,-151.0,0.00038356,120]
[404845225,1770616233964,-151.0,0.00038356,120]
[404845227,1770616233973,-151.0,0.00038356,120]
[404845229,1770616233983,-151.0,0.00038356,120]
[404845231,1770616233992,-151.0,0.00038356,120]
[404845233,1770616234001,-184.688214,0.00038356,120]
[404845235,1770616234011,-151.0,0.00038356,120]
[404845237,1770616234020,-151.0,0.00038356,120]
[404845239,1770616234029,-151.0,0.00038356,120]
[404845241,1770616234039,-151.0,0.00038356,120]
[404845243,1770616234049,-151.0,0.00038356,120]
[404845245,1770616234058,-151.0,0.00038356,120]
[404845246,1770616234067,-151.0,0.00038356,120]
[404845248,1770616234077,-151.0,0.00038356,120]
[404845250,1770616234086,-191.388882,0.00038356,120]
[404845252,1770616234096,-151.0,0.00038356,120]
[404845254,1770616234107,-179.884722,0.00038356,120]
[404845256,1770616234116,-694.884929,0.00038968,2]
[404845258,1770616234125,-19485.86710507,0.0003899,2]
[404845260,1770616234134,-151.0,0.00039041,120]
[404845262,1770616234144,-151.0,0.00039041,120]
[404845264,1770616234153,-204.54027105,0.00039063,2]
[404845266,1770616234162,-367.79220671,0.00039063,2]
[404845268,1770616234172,-959.0,0.00039744,30]
[404845270,1770616234181,-151.0,0.000398,16]
[404845272,1770616234190,-151.0,0.000398,120]
[404845274,1770616234199,-151.0,0.000398,120]
[404845276,1770616234209,-151.0,0.000398,120]
[404845278,1770616234219,-151.0,0.000398,120]
[404845280,1770616234228,-151.0,0.000398,120]
[404845282,1770616234238,-927.28418,0.000398,60]
[404845284,1770616234249,-927.28418,0.000398,60]
[404845286,1770616234258,-411.638526,0.000398,120]
[404845288,1770616234267,-927.28418,0.000398,60]
[404845289,1770616234275,-411.638526,0.000398,120]
[404845290,1770616234285,-927.28418,0.000398,60]
[404845291,1770616234293,-411.638526,0.000398,120]
[404845292,1770616234302,-411.638526,0.000398,120]
[404845293,1770616234312,-151.0,0.000398,120]
[404845294,1770616234321,-151.0,0.000398,120]
[404845295,1770616234330,-257.241025,0.000398,120]
[404845296,1770616234340,-509.5427,0.000398,2]
[404845297,1770616234349,-509.5427,0.000398,3]
[404845298,1770616234357,-509.5427,0.000398,4]
[404845299,1770616234366,-151.0,0.000398,120]